Cogmind - Beta 16.1 @@@ ROGUE MODE // 2026.04.07 @ 23:02:41 Player: Folded_Phoenix Result: Destroyed by Autobeam Turret with Autobeam Performance ------------- Evolutions (0) 0 Regions Visited (3) 600 Robots Destroyed (6) 30 Value Destroyed (210) 210 Prototype IDs (1) 20 Alien Tech Used (0) 0 Bonus (-16) -16 TOTAL SCORE: 844 Bonus ------- Friendly Fire -16 Cogmind --------- Core Integrity 0/250 Matter 300/300 Energy 99/100 System Corruption 0% Temperature Cool (12) Movement Core (150) Ox2 Location -10/Subcaves Parts ------- > --- POWER (1) -------- (None) > --- PROPULSION (2) --- Subdweller Monowheel > --- UTILITY (2) ------ Gun Armor > --- WEAPON (2+2) ----- Subdweller Laser > --- INVENTORY (5) ---- Light Angular Momentum Engine Armor Integrity Analyzer Phase Shifter Peak State ------------ > --- POWER ------------ Light Angular Momentum Engine > --- PROPULSION ------- Makeshift Leg Myomer Leg > --- UTILITY ---------- Scrap Shield > --- WEAPON ----------- Barrage Gun Bore Cannon > --- INVENTORY -------- Hover Unit Armor Integrity Analyzer Phase Shifter EM Pulse Gun Assault Rifle [Rating: 29] Favorites ----------- Power Light Ion Engine Engine Light Ion Engine Propulsion Aluminum Leg Leg Aluminum Leg Wheel Subdweller Monowheel Hover Unit Hover Unit Utility Scrap Shield Storage Small Storage Unit Protection Scrap Shield Weapon Assault Rifle Energy Gun EM Pulse Gun Ballistic Gun Assault Rifle Ballistic Cannon Bore Cannon Build | -11 -10 -10 -10 ------- Run | Yrd Mat Min Sub Slots Evolved . | . . . . Power . | . . . . Propulsion . | . . . . Utility . | . . . . Weapon . | . . . . Parts Attached 19 | 6 1 . 12 Power 4 | 1 1 . 2 Engine 4 | 1 1 . 2 Core . | . . . . Reactor . | . . . . Propulsion 7 | 2 . . 5 Treads . | . . . . Leg 4 | 2 . . 2 Wheel 2 | . . . 2 Hover 1 | . . . 1 Flight . | . . . . Utility 3 | 1 . . 2 Device . | . . . . Storage 1 | 1 . . . Processor . | . . . . Hackware . | . . . . Protection 2 | . . . 2 Artifact . | . . . . Weapon 5 | 2 . . 3 Energy Gun 2 | 1 . . 1 Energy Cannon . | . . . . Ballistic Gun 2 | 1 . . 1 Ballistic Cannon 1 | . . . 1 Launcher . | . . . . Special Weapon . | . . . . Impact Weapon . | . . . . Slashing Weapon . | . . . . Piercing Weapon . | . . . . Special Melee Weapon . | . . . . Unidentified Prototypes 1 | . . . 1 Parts Lost 11 | . . . 11 Power 3 | . . . 3 Propulsion 3 | . . . 3 Utility 1 | . . . 1 Weapon 4 | . . . 4 Highest Loss Streak 8 | . . . 8 To Critical Strikes 1 | . . . 1 Average Backups 2 | . . 1 2 Power . | . . . . Propulsion . | . . 1 . Utility . | . . . 1 Weapon . | . . . . Tool/Special . | . . . . Unused Backups 3 | . . . 3 Power 1 | . . . 1 Propulsion . | . . . . Utility 2 | . . . 2 Weapon . | . . . . Tool/Special . | . . . . Average Slot Usage (%) 77 | . 85 85 74 Engine 12 | . 14 14 11 Leg 23 | . 28 28 22 Wheel 2 | . . . 2 Storage 4 | . 14 14 . Protection 8 | . . . 11 Energy Gun 8 | . 14 14 6 Ballistic Gun 13 | . 14 14 13 Ballistic Cannon 2 | . . . 3 Peak Build Rating 29 | 6 6 6 29 Average Rating 13 | 4 6 6 16 On Entrance 4 | . 6 6 6 Avg Prop Armor Cover (%) 9 | . . . 9 Naked Turns . | . . . . Heaviest Build 39 | 14 14 12 39 Greatest Support 45 | 20 20 20 45 Greatest Overweight (x) 4 | 4 . . 2 Average Overweight (x) . | . . . . Largest Inventory Capacity 8 | 8 8 8 8 Average Capacity 5 | 7 8 8 5 Most Carried 5 | . 1 1 5 Average Carried 2 | . . 1 2 Final Capacity 8 | 8 8 8 5 Final Carried 3 | . 1 1 3 Class Distribution -------------------- 83% | Mutant 16% | Scavenger-Mutant Dominant Class ---------------- Mutant | -10/Materials Mutant | -10/Mines Mutant | -10/Subcaves Resources | -11 -10 -10 -10 ----------- Run | Yrd Mat Min Sub Matter Collected 653 | 228 . . 425 Remotely . | . . . . Salvage Created 195 | . . . 195 Parts 7 | . . . 7 Haulers Intercepted . | . . . . Recyclers Shooed . | . . . . Parts Field Recycled . | . . . . Retrieved Matter . | . . . . Parts Self-Destructed 5 | . . . 5 Prevented . | . . . . Parts Restored . | . . . . Kills | -11 -10 -10 -10 ------- Run | Yrd Mat Min Sub Combat Hostiles Destroyed 6 | . . . 6 Guns 3 | . . . 3 Cannons 3 | . . . 3 Classes Destroyed 2 | . . . 2 Swarmer 1 | . . . 1 Subdweller 5 | . . . 5 Best Kill Streak 3 | . . . 3 Combat Bots Only 3 | . . . 3 Max Kills in Single Turn 1 | . . . 1 Gunslinging . | . . . . Exploded . | . . . . Melee . | . . . . Uniques/NPCs Destroyed . | . . . . Combat | -11 -10 -10 -10 -------- Run | Yrd Mat Min Sub Hostile Shots Fired 252 | . . . 252 Missed 89 | . . . 89 Hits 163 | . . . 163 Projectile 163 | . . . 163 Critical Strikes 3 | . . . 3 Damage Taken 1619 | . . . 1619 Core 255 | . . . 255 Absorbed by Shields . | . . . . Core Remaining (%) 100 | 100 . . . Volleys Fired 39 | . 1 . 38 Largest 2 | . 2 . 2 Hottest 88 | . 60 . 88 Shots Fired 61 | . 2 . 59 Gun 40 | . 2 . 38 Cannon 21 | . . . 21 Launcher . | . . . . Special . | . . . . Kinetic 52 | . 1 . 51 Thermal 4 | . . . 4 Explosive . | . . . . Electromagnetic 5 | . 1 . 4 Robot Hit Streak 5 | . . . 5 Robot Miss Streak 8 | . 2 . 8 Penetration Max . | . . . . Secondary Targets . | . . . . Shots Hit Robots 25 | . . . 25 Core Hits 8 | . . . 8 Critical Kills 1 | . . . 1 Critical Parts Destroyed 2 | . . . 2 Critical Strikes 6 | . . . 6 Destroy 6 | . . . 6 Melee Attacks . | . . . . Impact . | . . . . Slashing . | . . . . Piercing . | . . . . Sneak Attacks . | . . . . Combat Hostiles . | . . . . Follow-up Attacks . | . . . . Damage Inflicted 511 | . . . 511 Guns 321 | . . . 321 Cannons 190 | . . . 190 Explosions . | . . . . Melee . | . . . . Ramming . | . . . . Kinetic 439 | . . . 439 Thermal 61 | . . . 61 Explosive . | . . . . Electromagnetic 11 | . . . 11 Impact . | . . . . Slashing . | . . . . Piercing . | . . . . Highest Corruption . | . . . . Average Corruption . | . . . . Corruption Purged . | . . . . Corruption Blocked . | . . . . Overload Shots . | . . . . Overflow Damage . | . . . . Projectiles . | . . . . Explosions . | . . . . Melee . | . . . . Knockbacks 1 | . . . 1 Impact . | . . . . Kinetic 1 | . . . 1 Secondary . | . . . . Self-Inflicted Damage . | . . . . Shots . | . . . . Rammed . | . . . . Targets Rammed . | . . . . Kicked . | . . . . Crushed . | . . . . Highest Temperature 24 | . . . 24 Average Temperature 11 | . . . 11 Received Heat Transfer 675 | . . . 675 Siege Activations . | . . . . Martial Activations . | . . . . Shielding Activations . | . . . . Robots Disrupted . | . . . . Combat Hostiles . | . . . . Robots Corrupted . | . . . . Combat Hostiles . | . . . . Parts Fried . | . . . . Impact Corruptions . | . . . . Robots Melted . | . . . . Combat Hostiles . | . . . . Parts Melted 1 | . . . 1 Heat Transferred 75 | . . . 75 Parts Sabotaged . | . . . . Parts Stolen . | . . . . Parts Stripped . | . . . . Power Chain Reactions . | . . . . Alert | -11 -10 -10 -10 ------- Run | Yrd Mat Min Sub Maximum Alert Level . | . . . . Low Security (%) 100 | 100 100 100 . Level 1 . | . . . . Level 2 . | . . . . Level 3 . | . . . . Level 4 . | . . . . Level 5 . | . . . . High Security . | . . . . Max Security . | . . . . Peak Influence . | . . . . Initial . | . . . . Average . | . . . . Influence Increases 185 | . . . 185 Destroy 0b10 Robot/C 20 | . . . 20 Lose Combat Pursuer 165 | . . . 165 Influence Decreases 132 | . . . 132 Time Decay 52 | . . . 52 Lost Part 80 | . . . 80 Squads Dispatched 1 | . 1 . . Investigation . | . . . . Extermination . | . . . . Reinforcement 1 | . 1 . . Assault . | . . . . Garrison . | . . . . Intercept . | . . . . Searches Triggered . | . . . . Construction Impeded . | . . . . Haulers Reinforced . | . . . . Active Scanning Responses . | . . . . Cargo Convoy Interrupts . | . . . . Stealth | -11 -10 -10 -10 --------- Run | Yrd Mat Min Sub Distress Signals . | . . . . Communications Jammed . | . . . . Distress Signals . | . . . . Times Spotted 28 | . 1 . 27 Peak Tracking Total 7 | . 1 . 7 Tactical Retreats 4 | . . . 4 Traps | -11 -10 -10 -10 ------- Run | Yrd Mat Min Sub Traps Triggered . | . . . . Indirectly . | . . . . Trap Hack Attempts . | . . . . Triggered . | . . . . Disarmed . | . . . . Reprogrammed . | . . . . Reused . | . . . . Traps Extracted . | . . . . Installed . | . . . . Triggered . | . . . . Machines | -11 -10 -10 -10 ---------- Run | Yrd Mat Min Sub Machines Disabled . | . . . . Max in Single Turn . | . . . . Machines Repaired . | . . . . Machines Dismantled . | . . . . Machines Sabotaged . | . . . . Overloaded Fab Kills . | . . . . Hacking | -11 -10 -10 -10 --------- Run | Yrd Mat Min Sub Machines Accessed . | . . . . Terminals . | . . . . Fabricators . | . . . . Repair Stations . | . . . . Recycling Units . | . . . . Scanalyzers . | . . . . Garrison Access . | . . . . Total Hacks . | . . . . Successful . | . . . . Failed . | . . . . Catastrophic . | . . . . Database Lockouts . | . . . . Manual . | . . . . Terminals . | . . . . Fabricators . | . . . . Repair Stations . | . . . . Recycling Units . | . . . . Scanalyzers . | . . . . Garrison Access . | . . . . Terminal Hacks . | . . . . Fabricator Hacks . | . . . . Repair Station Hacks . | . . . . Recycling Unit Hacks . | . . . . Scanalyzer . | . . . . Garrison Access Hacks . | . . . . Unauthorized Hacks . | . . . . Terminals . | . . . . Fabricators . | . . . . Repair Stations . | . . . . Recycling Units . | . . . . Scanalyzers . | . . . . Garrison Access . | . . . . Data Cores Recovered . | . . . . Used . | . . . . Hacking Detections . | . . . . Full Trace Events . | . . . . Feedback Events . | . . . . Feedback Blocked . | . . . . Robot Schematics Acquired . | . . . . Robots Built . | . . . . Authchips . | . . . . Time . | . . . . Total Robot Build Rating . | . . . . Part Schematics Acquired . | . . . . Parts Built . | . . . . Authchips . | . . . . Time . | . . . . Total Part Build Rating . | . . . . Part Studies Acquired . | . . . . Parts Repaired . | . . . . Time . | . . . . Parts Recycled . | . . . . Recycled Matter . | . . . . Retrieved Matter . | . . . . Retrieved Components . | . . . . Parts Scanalyzed . | . . . . Part Schematics Acquired . | . . . . Parts Damaged . | . . . . Bothacking | -11 -10 -10 -10 ------------ Run | Yrd Mat Min Sub Used RIF Installer . | . . . . Robots Hacked . | . . . . Non-combat . | . . . . Combat . | . . . . Robot Hacks Applied . | . . . . Relay Couplers Released . | . . . . Fabnet Peak Effective % . | . . . . Robots Rewired . | . . . . Allies Hacked . | . . . . Hacks Repelled . | . . . . Allies | -11 -10 -10 -10 -------- Run | Yrd Mat Min Sub Total Allies . | . . . . Largest Group . | . . . . Highest-Rated Group . | . . . . Highest-Rated Ally . | . . . . Total Orders . | . . . . Ally Attacks . | . . . . Total Damage . | . . . . Kills . | . . . . Allies Corrupted . | . . . . Allies Melted . | . . . . Intel | -11 -10 -10 -10 ------- Run | Yrd Mat Min Sub Active Infowar (turns) . | . . . . Robot Analysis Total . | . . . . Derelict Logs Recovered . | . . . . Drone Launches . | . . . . Drone Recoveries . | . . . . Exploration | -11 -10 -10 -10 ------------- Run | Yrd Mat Min Sub Turns Passed 689 | 55 126 39 469 Spaces Moved 405 | 35 101 33 236 Core 20 | 14 . . 6 Treads . | . . . . Legs 335 | 21 101 33 180 Wheels 45 | . . . 45 Hover 5 | . . . 5 Flight . | . . . . Fastest Speed 50 | 50 120 120 50 Average Speed 134 | 132 120 120 142 Slowest Speed 250 | 250 120 120 200 Overloaded Moves . | . . . . Propulsion Burnouts . | . . . . Robots Hopped . | . . . . Potential Cave-ins . | . . . . Cave-ins Triggered . | . . . . Exploration Rate (%) 14 | 3 29 12 12 Regions Visited 3 Branch Regions 2 Pre-discovered Areas 1 | . . . 1 Known Exits Taken . | . . . . Unknown Exits Taken 3 | 1 1 1 . Scrap Searched . | . . . . Spaces Dug . | . . . . Terrain Destroyed 10 | . . . 10 Melee . | . . . . Projectile 10 | . . . 10 AOE . | . . . . Terrain Rammed . | . . . . Walls Destroyed . | . . . . Machines Disabled . | . . . . Actions | -11 -10 -10 -10 --------- Run | Yrd Mat Min Sub Total 484 | 40 103 32 309 Wait 1 | . . . 1 Move 402 | 34 100 32 236 Hop . | . . . . Pick Up 10 | . 1 . 9 Fast Attach 10 | 6 . . 4 Attach 7 | . . . 7 Detach . | . . . . Swap 7 | . 1 . 6 Drop 5 | . . . 5 Fire 39 | . 1 . 38 Melee . | . . . . Ram . | . . . . Kick . | . . . . Crush . | . . . . Escape Stasis . | . . . . Rewire . | . . . . Trap . | . . . . Miscellaneous 3 | . . . 3 Route ------- -11/Scrapyard -10/Materials -10/Mines -10/Subcaves (discovered 1 exit: [*Rec]) History --------- Turn | Location | Event 2 | -11/Scrapyard | Met Revision 17 25 | -11/Scrapyard | Discovered new exit (range 16) 56 | -11/Scrapyard | Entered Materials 169 | -10/Materials | Discovered new exit (range 11) 182 | -10/Materials | Entered Mines 216 | -10/Mines | Discovered new exit (range 5) 221 | -10/Mines | Entered Subcaves 222 | -10/Subcaves | Approached by a straggling Scientist 230 | -10/Subcaves | Learned location of Zion (-6) 230 | -10/Subcaves | Met a Zionite searching for "candidates" 307 | -10/Subcaves | Build established: Mutant 331 | -10/Subcaves | Shifting Twisted Machinery released Barrage Gun 352 | -10/Subcaves | Shifting Twisted Machinery released Mak. Leg 383 | -10/Subcaves | Ambushed by swarm of Subdwellers 446 | -10/Subcaves | Lost 3 allies 546 | -10/Subcaves | Discovered new exit (range 16) 553 | -10/Subcaves | A Subdweller sparked back to life 553 | -10/Subcaves | A Subdweller sparked back to life 553 | -10/Subcaves | A Subdweller sparked back to life 583 | -10/Subcaves | Core integrity fell below 50% 617 | -10/Subcaves | Found Prototype Protection 617 | -10/Subcaves | Identified Gun Armor 618 | -10/Subcaves | Attached Gun Armor, gained temporary slots: Weapon x2 652 | -10/Subcaves | Lost 8 parts (1p2n1u4w) 666 | -10/Subcaves | Core integrity fell below 20% 690 | -10/Subcaves | Destroyed by Autobeam Turret with Autobeam Last Messages --------------- Acquired 39 matter. Acquired Prototype Protection. Identified Gun Armor. Core temporarily expanded with Weapon slot. Acquired Sub. Monowheel. EM Pulse Gun destroyed. Acquired 15 matter. Acquired 43 matter. Acquired 19 matter. Dropped Myomer Leg. Acquired Myomer Leg. Dropped Myomer Leg. Acquired Sub. Laser. Acquired Sub. Power Source. Acquired Lgt. Angular Momentum Engine. Acquired 58 matter. Acquired 47 matter. Acquired 5 matter. Sub. Power Source destroyed. Sub. Monowheel destroyed. Map ----- +----------------------------------------------------+ | ?????????????????## ##???????????????????????????# | | ?????????????????# #???????????????????????????# | | ????????????????? ##??????????????????????????? | | ?????????????????# #??????????????????????????? | | ?????????????????# ??????????????????????????# | | ?????????????????# ????????########?????????## | | ?????????????????# ?????????# #% ##????????#" | | ?????????????????# ?????????# ## ##???????# | | ?????????????????## #?????????# #### ##?##??## | | ?????????????????# ########### "## ## #?## # | | ?????????????????# " ;##*##"%## #?###" #### ## | | ??????????????????# !& != ###???### %##? | | ??????????????????# & % [" ##????######?? | | ??????????????????# # ; # " #???????????? | | ??????????????????###### %## % " #???????????? | | ???????????????????????# # " ##???????????? | | ???????????????????????# ####"##"##????????????? | | ???????????????????????# #??###????????????????? | | ???????????????????????# #?????????????????????? | | ???????????????????????# #?????????????????????? | | ????????????????????#### ####??????????????????? | | ????????????????????#" "#??????????????????? | | ????????????????????# #??????????????????? | | ????????????????????# #??????????????????? | | ????????????????????#" t t "#??????????????????? | | ????????????????????#" "@" "#??????????????????? | | ????????????????????#"""" """"#??????????????????? | | ????????????????????#####<#####??????????????????? | | ????????????????????????###??????????????????????? | | ?????????????????????????????????????????????????? | | ?????????????????????????????????????????????????? | | ?????????????????????????????????????????????????? | | ?????????????????????????????????????????????????? | | ?????????????????????????????????????????????????? | | ?????????????????????????????????????????????????? | | ?????????????????????????????????????????????????? | | ?????????????????????????????????????????????????? | | ?????????????????????????????????????????????????? | | ?????????????????????????????????????????????????? | | ?????????????????????????????????????????????????? | | ?????????????????????????????????????????????????? | | ?????????????????????????????????????????????????? | | ?????????????????????????????????????????????????? | | ?????????????????????????????????????????????????? | | ?????????????????????????????????????????????????? | | ?????????????????????????????????????????????????? | | ?????????????????????????????????????????????????? | | ?????????????????????????????????????????????????? | | ?????????????????????????????????????????????????? | | ?????????????????????????????????????????????????? | +----------------------------------------------------+ Best States ------------- Heat Dissipation 25 Energy Generation 18 Energy Capacity 250 Matter Stores 300 Matter Capacity 300 Sight Range 16 Terrain Scan Density 10 Armor Coverage 800 Evasion (%) 55 Item Schematics ----------------- None Robot Schematics ------------------ None Fabricated ------------ Nothing Repaired ---------- Nothing Studied --------- None Alien Tech Used ----------------- None Achievements -------------- Survival Of The Most Covered You Again Challenges ------------ None Game ------ Seed ProjectionRefineryObfuscator Manual? 0 Play Time 00:12:55 Cumulative 20.8 hours Start 2026.04.06 @ 21:15:17 End 2026.04.07 @ 23:02:41 Sessions 2 Manual Loads 0 Difficulty Rogue Special Mode None Game No. 29 Rogue 29 Adventurer 0 Explorer 0 Win Type - Total 0 Types 0/0/0/0/0/0/0/0/0/0 Lore% 21 Gallery% 27 Achievement% 18 Wizard Run 0 Options --------- Layout 1 ASCII 0 Keyboard 0 Movement Mouse Keybinds 0 Fullscreen 1 Font 24/Smallcaps Map View 50x35 Zoom Use 0% Tactical HUD 0 Map Filters NONE Filters NONE Steam 1 RUN: 380fb92f-568e-4aa8-bcae-fe5a7eceeac3